[Event "January 9 Early 2024"]
[Site "https://www.chess.com"]
[Date "2024.01.11"]
[Round "1"]
[White "Sakun, Volodymyr"]
[Black "Sultanbek, Zeinep"]
[Result "0-1"]
[Board "299"]
[TimeControl "180+1"]
[WhiteFideId "14114062"]
[BlackFideId "13710419"]
[WhiteElo "2628"]
[BlackElo "2321"]
[WhiteTeam "UKR"]
[BlackTeam "KAZ"]
[WhiteClock "0:00:03"]
[BlackClock "0:00:03"]

1. Nf3 {[%clk 0:03:00]}  d5 {[%clk 0:02:58]} 2. d4 {[%clk 0:02:59]}  Nf6 {[%clk 0:02:58]} 3. c4 {[%clk 0:02:59]}  e6 {[%clk 0:02:58]} 4. Nc3 {[%clk 0:02:59]}  c6 {[%clk 0:02:58]} 5. e3 {[%clk 0:02:57]}  Nbd7 {[%clk 0:02:52]} 6. Qc2 {[%clk 0:02:56]}  Bd6 {[%clk 0:02:49]} 7. b3 {[%clk 0:02:53]}  dxc4 {[%clk 0:02:41]} 8. bxc4 {[%clk 0:02:51]}  e5 {[%clk 0:02:42]} 9. Bd3 {[%clk 0:02:29]}  O-O {[%clk 0:02:39]} 10. O-O {[%clk 0:02:28]}  Re8 {[%clk 0:02:34]} 11. Bb2 {[%clk 0:02:21]}  exd4 {[%clk 0:02:29]} 12. exd4 {[%clk 0:02:21]}  Nf8 {[%clk 0:02:28]} 13. Rfe1 {[%clk 0:02:10]}  Bg4 {[%clk 0:02:23]} 14. Ne5 {[%clk 0:02:01]}  Bxe5 {[%clk 0:02:15]} 15. dxe5 {[%clk 0:02:00]}  N6d7 {[%clk 0:02:15]} 16. h3 {[%clk 0:01:32]}  Bh5 {[%clk 0:02:06]} 17. f4 {[%clk 0:01:28]}  Nc5 {[%clk 0:02:04]} 18. Bf1 {[%clk 0:01:23]}  Nfe6 {[%clk 0:01:40]} 19. Qf2 {[%clk 0:01:14]}  Qd4 {[%clk 0:01:12]} 20. g4 {[%clk 0:01:05]}  Qxf2+ {[%clk 0:00:51]} 21. Kxf2 {[%clk 0:01:04]}  Nxf4 {[%clk 0:00:52]} 22. Ke3 {[%clk 0:00:55]}  Ng6 {[%clk 0:00:40]} 23. gxh5 {[%clk 0:00:52]}  Nxe5 {[%clk 0:00:41]} 24. Kd4 {[%clk 0:00:19]}  Ncd3 {[%clk 0:00:17]} 25. Na4 {[%clk 0:00:08]}  Rad8+ {[%clk 0:00:16]} 26. Kc3 {[%clk 0:00:08]}  Nxe1 {[%clk 0:00:16]} 27. Rxe1 {[%clk 0:00:08]}  h6 {[%clk 0:00:16]} 28. Nc5 {[%clk 0:00:07]}  b6 {[%clk 0:00:15]} 29. Nd3 {[%clk 0:00:07]}  Nxd3 {[%clk 0:00:14]} 30. Rxe8+ {[%clk 0:00:07]}  Rxe8 {[%clk 0:00:15]} 31. Bxd3 {[%clk 0:00:07]}  Re5 {[%clk 0:00:15]} 32. Kd2 {[%clk 0:00:05]}  Rxh5 {[%clk 0:00:16]} 33. Bf1 {[%clk 0:00:05]}  Rf5 {[%clk 0:00:14]} 34. Ke2 {[%clk 0:00:04]}  Rf4 {[%clk 0:00:13]} 35. Ke1 {[%clk 0:00:05]}  g5 {[%clk 0:00:12]} 36. Bc3 {[%clk 0:00:05]}  f5 {[%clk 0:00:12]} 37. Bd2 {[%clk 0:00:05]}  Re4+ {[%clk 0:00:11]} 38. Be2 {[%clk 0:00:05]}  Kf7 {[%clk 0:00:11]} 39. Kf2 {[%clk 0:00:05]}  Kg6 {[%clk 0:00:11]} 40. Bd3 {[%clk 0:00:05]}  Rd4 {[%clk 0:00:11]} 41. Ke3 {[%clk 0:00:06]}  c5 {[%clk 0:00:12]} 42. Bc3 {[%clk 0:00:06]}  Rd7 {[%clk 0:00:12]} 43. Ke2 {[%clk 0:00:05]}  h5 {[%clk 0:00:12]} 44. Be1 {[%clk 0:00:05]}  g4 {[%clk 0:00:12]} 45. h4 {[%clk 0:00:05]}  Re7+ {[%clk 0:00:09]} 46. Kd2 {[%clk 0:00:05]}  Kf6 {[%clk 0:00:08]} 47. Bg3 {[%clk 0:00:04]}  Rd7 {[%clk 0:00:08]} 48. Bf4 {[%clk 0:00:04]}  Rd4 {[%clk 0:00:08]} 49. Ke3 {[%clk 0:00:04]}  a6 {[%clk 0:00:06]} 50. a4 {[%clk 0:00:04]}  b5 {[%clk 0:00:04]} 51. axb5 {[%clk 0:00:03]}  a5 {[%clk 0:00:04]} 52. b6 {[%clk 0:00:03]}  Rd7 {[%clk 0:00:04]} 53. Bc2 {[%clk 0:00:02]}  Rb7 {[%clk 0:00:04]} 54. Bc7 {[%clk 0:00:01]}  Ke6 {[%clk 0:00:03]} 55. Kf4 {[%clk 0:00:02]}  Rxc7 {[%clk 0:00:02]} 56. Ba4 {[%clk 0:00:02]}  Rb7 {[%clk 0:00:02]} 57. Bc6 {[%clk 0:00:03]}  Rxb6 {[%clk 0:00:02]} 58. Bd5+ {[%clk 0:00:03]}  Kf6 {[%clk 0:00:03]} 59. Bg8 {[%clk 0:00:03]}  a4 {[%clk 0:00:03]} 0-1

[Event "January 9 Early 2024"]
[Site "https://www.chess.com"]
[Date "2024.01.11"]
[Round "1"]
[White "Haug, Havard"]
[Black "Krivenko, Dion"]
[Result "0-1"]
[Board "300"]
[TimeControl "180+1"]
[WhiteFideId "1547887"]
[BlackFideId "4508378"]
[WhiteElo "2767"]
[BlackElo "2458"]
[WhiteTeam "NOR"]
[BlackTeam "EST"]
[WhiteClock "0:00:24"]
[BlackClock "0:00:14"]

1. b3 {[%clk 0:03:00]}  Nf6 {[%clk 0:01:24]} 2. Bb2 {[%clk 0:02:59]}  d5 {[%clk 0:01:24]} 3. f4 {[%clk 0:02:57]}  g6 {[%clk 0:01:23]} 4. Nf3 {[%clk 0:02:57]}  Bg7 {[%clk 0:01:24]} 5. e3 {[%clk 0:02:57]}  c5 {[%clk 0:01:24]} 6. Be2 {[%clk 0:02:57]}  O-O {[%clk 0:01:25]} 7. O-O {[%clk 0:02:57]}  Nc6 {[%clk 0:01:26]} 8. d3 {[%clk 0:02:53]}  a5 {[%clk 0:01:17]} 9. a4 {[%clk 0:02:51]}  Re8 {[%clk 0:01:05]} 10. Ne5 {[%clk 0:02:46]}  Qc7 {[%clk 0:01:03]} 11. Nd2 {[%clk 0:02:44]}  Nd7 {[%clk 0:01:00]} 12. d4 {[%clk 0:02:35]}  cxd4 {[%clk 0:00:53]} 13. exd4 {[%clk 0:02:36]}  Nf6 {[%clk 0:00:45]} 14. Bd3 {[%clk 0:02:31]}  Nb4 {[%clk 0:00:41]} 15. Bb5 {[%clk 0:02:26]}  Rd8 {[%clk 0:00:27]} 16. c3 {[%clk 0:02:25]}  Nc6 {[%clk 0:00:22]} 17. Qe2 {[%clk 0:02:20]}  Bf5 {[%clk 0:00:22]} 18. Rfe1 {[%clk 0:02:18]}  Ne4 {[%clk 0:00:21]} 19. Nxe4 {[%clk 0:02:16]}  Bxe4 {[%clk 0:00:22]} 20. Bxc6 {[%clk 0:02:14]}  bxc6 {[%clk 0:00:22]} 21. Ba3 {[%clk 0:02:11]}  Re8 {[%clk 0:00:18]} 22. Bc5 {[%clk 0:02:05]}  Rab8 {[%clk 0:00:18]} 23. b4 {[%clk 0:02:00]}  f6 {[%clk 0:00:18]} 24. Nd3 {[%clk 0:01:57]}  Bxd3 {[%clk 0:00:18]} 25. Qxd3 {[%clk 0:01:58]}  Qxf4 {[%clk 0:00:19]} 26. Bxe7 {[%clk 0:01:55]}  axb4 {[%clk 0:00:19]} 27. cxb4 {[%clk 0:01:54]}  f5 {[%clk 0:00:18]} 28. Bc5 {[%clk 0:01:54]}  Re4 {[%clk 0:00:17]} 29. a5 {[%clk 0:01:54]}  Bxd4+ {[%clk 0:00:15]} 30. Bxd4 {[%clk 0:01:49]}  Rxd4 {[%clk 0:00:16]} 31. Qa6 {[%clk 0:01:48]}  Rdxb4 {[%clk 0:00:15]} 32. Qxc6 {[%clk 0:01:47]}  Qd4+ {[%clk 0:00:14]} 33. Kh1 {[%clk 0:01:46]}  Qxa1 {[%clk 0:00:10]} 34. Rxa1 {[%clk 0:01:47]}  Rb1+ {[%clk 0:00:10]} 35. Qc1 {[%clk 0:01:47]}  Rxc1+ {[%clk 0:00:10]} 36. Rxc1 {[%clk 0:01:48]}  Ra8 {[%clk 0:00:11]} 37. Ra1 {[%clk 0:01:48]}  Ra6 {[%clk 0:00:11]} 38. Kg1 {[%clk 0:01:48]}  Kf7 {[%clk 0:00:12]} 39. Kf2 {[%clk 0:01:48]}  Ke6 {[%clk 0:00:12]} 40. Ke3 {[%clk 0:01:49]}  Ke5 {[%clk 0:00:13]} 41. Kd3 {[%clk 0:01:49]}  d4 {[%clk 0:00:13]} 42. Kc4 {[%clk 0:01:50]}  Ke4 {[%clk 0:00:09]} 43. Re1+ {[%clk 0:01:41]}  Kf4 {[%clk 0:00:09]} 44. Kb5 {[%clk 0:01:42]}  Ra8 {[%clk 0:00:10]} 45. a6 {[%clk 0:01:43]}  d3 {[%clk 0:00:10]} 46. Kc4 {[%clk 0:00:36]}  Rxa6 {[%clk 0:00:10]} 47. Kxd3 {[%clk 0:00:37]}  Ra2 {[%clk 0:00:10]} 48. Rf1+ {[%clk 0:00:37]}  Kg4 {[%clk 0:00:11]} 49. Rg1 {[%clk 0:00:35]}  h5 {[%clk 0:00:08]} 50. Ke3 {[%clk 0:00:33]}  h4 {[%clk 0:00:09]} 51. g3 {[%clk 0:00:25]}  h3 {[%clk 0:00:07]} 52. Rh1 {[%clk 0:00:26]}  g5 {[%clk 0:00:07]} 53. Kd3 {[%clk 0:00:25]}  Rg2 {[%clk 0:00:04]} 54. Ke3 {[%clk 0:00:19]}  Ra2 {[%clk 0:00:04]} 55. Kd3 {[%clk 0:00:19]}  Rb2 {[%clk 0:00:05]} 56. Kc3 {[%clk 0:00:18]}  Rg2 {[%clk 0:00:05]} 57. Kd3 {[%clk 0:00:18]}  f4 {[%clk 0:00:05]} 58. gxf4 {[%clk 0:00:17]}  Kxf4 {[%clk 0:00:05]} 59. Rf1+ {[%clk 0:00:15]}  Kg4 {[%clk 0:00:05]} 60. Rh1 {[%clk 0:00:16]}  Kf3 {[%clk 0:00:05]} 61. Rf1+ {[%clk 0:00:15]}  Rf2 {[%clk 0:00:06]} 62. Rg1 {[%clk 0:00:15]}  g4 {[%clk 0:00:05]} 63. Rh1 {[%clk 0:00:15]}  Kg2 {[%clk 0:00:05]} 64. Ra1 {[%clk 0:00:15]}  Kxh2 {[%clk 0:00:05]} 65. Ke3 {[%clk 0:00:16]}  g3 {[%clk 0:00:05]} 66. Ra8 {[%clk 0:00:14]}  Rf7 {[%clk 0:00:05]} 67. Rg8 {[%clk 0:00:15]}  g2 {[%clk 0:00:06]} 68. Ke4 {[%clk 0:00:16]}  g1=Q {[%clk 0:00:06]} 69. Rxg1 {[%clk 0:00:17]}  Kxg1 {[%clk 0:00:07]} 70. Ke5 {[%clk 0:00:18]}  Rf2 {[%clk 0:00:07]} 71. Ke6 {[%clk 0:00:19]}  h2 {[%clk 0:00:08]} 72. Ke7 {[%clk 0:00:19]}  Kg2 {[%clk 0:00:09]} 73. Ke8 {[%clk 0:00:20]}  h1=Q {[%clk 0:00:10]} 74. Ke7 {[%clk 0:00:21]}  Qe1+ {[%clk 0:00:10]} 75. Kd8 {[%clk 0:00:22]}  Rd2+ {[%clk 0:00:11]} 76. Kc7 {[%clk 0:00:23]}  Qc1+ {[%clk 0:00:12]} 77. Kb7 {[%clk 0:00:23]}  Rb2+ {[%clk 0:00:13]} 78. Ka7 {[%clk 0:00:24]}  Qa1# {[%clk 0:00:14]} 0-1

[Event "January 9 Early 2024"]
[Site "https://www.chess.com"]
[Date "2024.01.11"]
[Round "1"]
[White "Tqebuchava, Zurab"]
[Black "Kochiev, Ivan"]
[Result "0-1"]
[Board "303"]
[TimeControl "180+1"]
[WhiteFideId "13601113"]
[BlackFideId "2917890"]
[WhiteElo "2133"]
[BlackElo "2559"]
[WhiteTeam "GEO"]
[BlackTeam "BUL"]
[WhiteClock "0:00:02"]
[BlackClock "0:00:04"]

1. e4 {[%clk 0:03:00]}  c5 {[%clk 0:02:56]} 2. Nf3 {[%clk 0:02:59]}  d6 {[%clk 0:02:56]} 3. Bb5+ {[%clk 0:03:00]}  Nc6 {[%clk 0:02:55]} 4. O-O {[%clk 0:02:57]}  Bd7 {[%clk 0:02:53]} 5. h3 {[%clk 0:02:54]}  a6 {[%clk 0:02:46]} 6. Bxc6 {[%clk 0:02:53]}  Bxc6 {[%clk 0:02:46]} 7. Re1 {[%clk 0:02:52]}  Nf6 {[%clk 0:02:42]} 8. e5 {[%clk 0:02:44]}  dxe5 {[%clk 0:02:35]} 9. Nxe5 {[%clk 0:02:43]}  Qc7 {[%clk 0:02:34]} 10. Nxc6 {[%clk 0:02:41]}  Qxc6 {[%clk 0:02:34]} 11. Nc3 {[%clk 0:02:38]}  e6 {[%clk 0:02:34]} 12. d3 {[%clk 0:02:37]}  Be7 {[%clk 0:02:31]} 13. a4 {[%clk 0:02:23]}  O-O {[%clk 0:02:25]} 14. Bf4 {[%clk 0:02:19]}  b5 {[%clk 0:02:24]} 15. axb5 {[%clk 0:02:18]}  axb5 {[%clk 0:02:24]} 16. Qe2 {[%clk 0:02:11]}  b4 {[%clk 0:02:02]} 17. Ne4 {[%clk 0:02:05]}  Nxe4 {[%clk 0:01:32]} 18. Qxe4 {[%clk 0:01:47]}  Qxe4 {[%clk 0:01:11]} 19. dxe4 {[%clk 0:01:45]}  Rxa1 {[%clk 0:01:09]} 20. Rxa1 {[%clk 0:01:44]}  Rd8 {[%clk 0:01:09]} 21. Ra7 {[%clk 0:01:35]}  Bf8 {[%clk 0:01:06]} 22. b3 {[%clk 0:01:29]}  f6 {[%clk 0:01:01]} 23. Kf1 {[%clk 0:01:24]}  c4 {[%clk 0:00:44]} 24. bxc4 {[%clk 0:01:18]}  Rd4 {[%clk 0:00:43]} 25. c5 {[%clk 0:00:41]}  Rxe4 {[%clk 0:00:27]} 26. Be3 {[%clk 0:00:40]}  Rc4 {[%clk 0:00:27]} 27. Rb7 {[%clk 0:00:35]}  Bxc5 {[%clk 0:00:22]} 28. Rc7 {[%clk 0:00:32]}  Rxc2 {[%clk 0:00:15]} 29. Rxc5 {[%clk 0:00:30]}  Ra2 {[%clk 0:00:15]} 30. Rb5 {[%clk 0:00:29]}  Ra1+ {[%clk 0:00:14]} 31. Ke2 {[%clk 0:00:28]}  Rb1 {[%clk 0:00:15]} 32. Rb7 {[%clk 0:00:26]}  b3 {[%clk 0:00:16]} 33. Kd2 {[%clk 0:00:25]}  b2 {[%clk 0:00:12]} 34. Kc2 {[%clk 0:00:24]}  Rg1 {[%clk 0:00:12]} 35. g3 {[%clk 0:00:21]}  g5 {[%clk 0:00:11]} 36. Rxb2 {[%clk 0:00:19]}  Rh1 {[%clk 0:00:11]} 37. Rb6 {[%clk 0:00:17]}  Kf7 {[%clk 0:00:11]} 38. Rb7+ {[%clk 0:00:15]}  Kg6 {[%clk 0:00:11]} 39. Re7 {[%clk 0:00:13]}  e5 {[%clk 0:00:11]} 40. Kd3 {[%clk 0:00:11]}  Rxh3 {[%clk 0:00:11]} 41. Ke2 {[%clk 0:00:10]}  Rh1 {[%clk 0:00:12]} 42. Re8 {[%clk 0:00:09]}  Ra1 {[%clk 0:00:11]} 43. Rc8 {[%clk 0:00:09]}  Ra2+ {[%clk 0:00:11]} 44. Kf3 {[%clk 0:00:08]}  h5 {[%clk 0:00:10]} 45. Kg2 {[%clk 0:00:08]}  Kf5 {[%clk 0:00:10]} 46. Rc7 {[%clk 0:00:08]}  Ra6 {[%clk 0:00:09]} 47. Rc8 {[%clk 0:00:08]}  Kg6 {[%clk 0:00:09]} 48. Rg8+ {[%clk 0:00:08]}  Kf7 {[%clk 0:00:09]} 49. Rh8 {[%clk 0:00:08]}  Kg6 {[%clk 0:00:09]} 50. Rc8 {[%clk 0:00:07]}  Rd6 {[%clk 0:00:09]} 51. Rc7 {[%clk 0:00:06]}  f5 {[%clk 0:00:05]} 52. Rc5 {[%clk 0:00:05]}  f4 {[%clk 0:00:06]} 53. gxf4 {[%clk 0:00:04]}  exf4 {[%clk 0:00:05]} 54. Bc1 {[%clk 0:00:04]}  Rd4 {[%clk 0:00:05]} 55. Bb2 {[%clk 0:00:04]}  Rb4 {[%clk 0:00:05]} 56. Rc6+ {[%clk 0:00:04]}  Kf5 {[%clk 0:00:05]} 57. Bc3 {[%clk 0:00:04]}  Ra4 {[%clk 0:00:04]} 58. f3 {[%clk 0:00:04]}  g4 {[%clk 0:00:04]} 59. Rf6+ {[%clk 0:00:03]}  Kg5 {[%clk 0:00:05]} 60. fxg4 {[%clk 0:00:02]}  hxg4 {[%clk 0:00:05]} 61. Rf8 {[%clk 0:00:02]}  Rc4 {[%clk 0:00:04]} 62. Bd2 {[%clk 0:00:02]}  Rc2 {[%clk 0:00:04]} 0-1

[Event "January 9 Early 2024"]
[Site "https://www.chess.com"]
[Date "2024.01.11"]
[Round "1"]
[White "Aradhya, Garg"]
[Black "Hejazipour, Mitra"]
[Result "0-1"]
[Board "304"]
[TimeControl "180+1"]
[WhiteFideId "25006746"]
[BlackFideId "12505951"]
[WhiteElo "2724"]
[BlackElo "2437"]
[WhiteTeam "IND"]
[BlackTeam "FRA"]
[WhiteClock "0:00:11"]
[BlackClock "0:00:21"]

1. d4 {[%clk 0:03:00]}  Nf6 {[%clk 0:02:59]} 2. c4 {[%clk 0:03:01]}  e6 {[%clk 0:02:59]} 3. Nf3 {[%clk 0:03:01]}  b6 {[%clk 0:02:58]} 4. a3 {[%clk 0:02:59]}  Bb7 {[%clk 0:02:55]} 5. Nc3 {[%clk 0:03:00]}  d5 {[%clk 0:02:55]} 6. Qc2 {[%clk 0:02:55]}  Be7 {[%clk 0:02:54]} 7. cxd5 {[%clk 0:02:55]}  Nxd5 {[%clk 0:02:54]} 8. e4 {[%clk 0:02:55]}  Nxc3 {[%clk 0:02:53]} 9. bxc3 {[%clk 0:02:56]}  c5 {[%clk 0:02:53]} 10. Bb5+ {[%clk 0:02:55]}  Bc6 {[%clk 0:02:51]} 11. Bd3 {[%clk 0:02:56]}  O-O {[%clk 0:02:45]} 12. O-O {[%clk 0:02:56]}  Qc7 {[%clk 0:02:43]} 13. Rd1 {[%clk 0:02:48]}  Nd7 {[%clk 0:02:41]} 14. d5 {[%clk 0:02:48]}  Bb7 {[%clk 0:02:36]} 15. c4 {[%clk 0:02:45]}  Bf6 {[%clk 0:02:28]} 16. Bb2 {[%clk 0:02:44]}  Ne5 {[%clk 0:02:11]} 17. Be2 {[%clk 0:02:32]}  Rad8 {[%clk 0:02:02]} 18. a4 {[%clk 0:02:00]}  Nxf3+ {[%clk 0:01:48]} 19. Bxf3 {[%clk 0:01:59]}  Be5 {[%clk 0:01:22]} 20. g3 {[%clk 0:01:47]}  f5 {[%clk 0:01:14]} 21. exf5 {[%clk 0:01:44]}  exd5 {[%clk 0:01:08]} 22. Bxd5+ {[%clk 0:01:39]}  Bxd5 {[%clk 0:01:07]} 23. Rxd5 {[%clk 0:01:39]}  Rxd5 {[%clk 0:01:07]} 24. cxd5 {[%clk 0:01:40]}  Bxb2 {[%clk 0:01:07]} 25. Qxb2 {[%clk 0:01:40]}  Rxf5 {[%clk 0:01:07]} 26. Rd1 {[%clk 0:01:40]}  Qd6 {[%clk 0:01:06]} 27. Qe2 {[%clk 0:01:40]}  Rf8 {[%clk 0:01:05]} 28. f4 {[%clk 0:01:37]}  Rd8 {[%clk 0:01:01]} 29. Qe5 {[%clk 0:01:32]}  h6 {[%clk 0:00:55]} 30. Kf2 {[%clk 0:01:32]}  a6 {[%clk 0:00:55]} 31. Qxd6 {[%clk 0:01:27]}  Rxd6 {[%clk 0:00:55]} 32. Ke3 {[%clk 0:01:27]}  b5 {[%clk 0:00:52]} 33. Ke4 {[%clk 0:01:28]}  Kf7 {[%clk 0:00:46]} 34. Ke5 {[%clk 0:01:24]}  Rd8 {[%clk 0:00:45]} 35. d6 {[%clk 0:01:20]}  c4 {[%clk 0:00:43]} 36. Rb1 {[%clk 0:01:19]}  Rb8 {[%clk 0:00:42]} 37. Kd5 {[%clk 0:01:19]}  c3 {[%clk 0:00:42]} 38. Kc6 {[%clk 0:01:07]}  c2 {[%clk 0:00:37]} 39. Rc1 {[%clk 0:01:06]}  Rc8+ {[%clk 0:00:34]} 40. Kb7 {[%clk 0:00:55]}  Rc4 {[%clk 0:00:34]} 41. Kxa6 {[%clk 0:00:54]}  b4 {[%clk 0:00:32]} 42. Kb5 {[%clk 0:00:53]}  b3 {[%clk 0:00:30]} 43. Kxc4 {[%clk 0:00:53]}  b2 {[%clk 0:00:30]} 44. Rxc2 {[%clk 0:00:53]}  b1=Q {[%clk 0:00:31]} 45. Rd2 {[%clk 0:00:49]}  Qc1+ {[%clk 0:00:31]} 46. Kd3 {[%clk 0:00:49]}  Ke6 {[%clk 0:00:30]} 47. Ke2 {[%clk 0:00:49]}  Qc4+ {[%clk 0:00:30]} 48. Kf2 {[%clk 0:00:49]}  Kd7 {[%clk 0:00:30]} 49. a5 {[%clk 0:00:30]}  Qc5+ {[%clk 0:00:30]} 50. Kg2 {[%clk 0:00:24]}  Qxa5 {[%clk 0:00:30]} 51. Rd3 {[%clk 0:00:25]}  Qa2+ {[%clk 0:00:29]} 52. Kh3 {[%clk 0:00:24]}  Qe2 {[%clk 0:00:29]} 53. Rd4 {[%clk 0:00:20]}  Qh5+ {[%clk 0:00:25]} 54. Kg2 {[%clk 0:00:20]}  Qe2+ {[%clk 0:00:24]} 55. Kh3 {[%clk 0:00:21]}  Qe6+ {[%clk 0:00:24]} 56. Kg2 {[%clk 0:00:21]}  g5 {[%clk 0:00:25]} 57. fxg5 {[%clk 0:00:21]}  hxg5 {[%clk 0:00:25]} 58. h4 {[%clk 0:00:20]}  g4 {[%clk 0:00:25]} 59. Rf4 {[%clk 0:00:18]}  Qe2+ {[%clk 0:00:24]} 60. Kg1 {[%clk 0:00:17]}  Kxd6 {[%clk 0:00:24]} 61. h5 {[%clk 0:00:17]}  Qe3+ {[%clk 0:00:20]} 62. Kg2 {[%clk 0:00:17]}  Qd2+ {[%clk 0:00:20]} 63. Kg1 {[%clk 0:00:17]}  Qd1+ {[%clk 0:00:20]} 64. Kg2 {[%clk 0:00:18]}  Qd5+ {[%clk 0:00:20]} 65. Kg1 {[%clk 0:00:09]}  Qxh5 {[%clk 0:00:21]} 66. Rf2 {[%clk 0:00:09]}  Qh3 {[%clk 0:00:20]} 67. Rg2 {[%clk 0:00:10]}  Ke5 {[%clk 0:00:20]} 68. Kf2 {[%clk 0:00:10]}  Ke4 {[%clk 0:00:21]} 69. Rg1 {[%clk 0:00:10]}  Qh2+ {[%clk 0:00:20]} 70. Rg2 {[%clk 0:00:11]}  Qh1 {[%clk 0:00:20]} 71. Rg1 {[%clk 0:00:11]}  Qf3+ {[%clk 0:00:21]} 72. Ke1 {[%clk 0:00:11]}  Kd3 {[%clk 0:00:21]} 0-1

[Event "January 9 Early 2024"]
[Site "https://www.chess.com"]
[Date "2024.01.11"]
[Round "1"]
[White "Liu, Casper"]
[Black "Bindrich, Falko"]
[Result "1/2-1/2"]
[Board "308"]
[TimeControl "180+1"]
[WhiteFideId "1454153"]
[BlackFideId "4676670"]
[WhiteElo "2462"]
[BlackElo "2817"]
[WhiteTeam "DEN"]
[BlackTeam "GER"]
[WhiteClock "0:00:06"]
[BlackClock "0:00:15"]

1. Nf3 {[%clk 0:03:00]}  d5 {[%clk 0:02:56]} 2. b3 {[%clk 0:03:01]}  c6 {[%clk 0:02:56]} 3. Bb2 {[%clk 0:03:02]}  Bf5 {[%clk 0:02:56]} 4. e3 {[%clk 0:03:03]}  e6 {[%clk 0:02:57]} 5. Be2 {[%clk 0:03:03]}  h6 {[%clk 0:02:57]} 6. O-O {[%clk 0:03:03]}  Nf6 {[%clk 0:02:58]} 7. c4 {[%clk 0:03:03]}  Be7 {[%clk 0:02:59]} 8. Nc3 {[%clk 0:03:03]}  O-O {[%clk 0:02:59]} 9. h3 {[%clk 0:03:03]}  Nbd7 {[%clk 0:03:00]} 10. cxd5 {[%clk 0:03:03]}  exd5 {[%clk 0:03:00]} 11. Rc1 {[%clk 0:03:04]}  Re8 {[%clk 0:03:00]} 12. Nd4 {[%clk 0:03:02]}  Bg6 {[%clk 0:02:59]} 13. Re1 {[%clk 0:03:02]}  Bd6 {[%clk 0:02:59]} 14. Bf3 {[%clk 0:03:02]}  Ne5 {[%clk 0:02:59]} 15. g3 {[%clk 0:02:57]}  Nd3 {[%clk 0:02:59]} 16. Ba1 {[%clk 0:02:56]}  Qd7 {[%clk 0:02:55]} 17. Bg2 {[%clk 0:02:53]}  Rad8 {[%clk 0:02:48]} 18. f4 {[%clk 0:02:53]}  Be4 {[%clk 0:02:47]} 19. Nxe4 {[%clk 0:02:52]}  Nxe4 {[%clk 0:02:47]} 20. g4 {[%clk 0:02:47]}  Bf8 {[%clk 0:02:45]} 21. Qc2 {[%clk 0:02:41]}  Nxc1 {[%clk 0:02:34]} 22. Rxc1 {[%clk 0:02:41]}  c5 {[%clk 0:02:33]} 23. Nf3 {[%clk 0:02:31]}  f6 {[%clk 0:02:13]} 24. d3 {[%clk 0:02:31]}  Nd6 {[%clk 0:02:13]} 25. Nh4 {[%clk 0:02:29]}  Nf7 {[%clk 0:02:03]} 26. Nf5 {[%clk 0:02:06]}  g6 {[%clk 0:02:00]} 27. Nh4 {[%clk 0:02:03]}  Rxe3 {[%clk 0:01:58]} 28. Bxf6 {[%clk 0:02:01]}  Rde8 {[%clk 0:01:45]} 29. d4 {[%clk 0:01:59]}  R8e4 {[%clk 0:01:31]} 30. dxc5 {[%clk 0:01:45]}  Qe6 {[%clk 0:01:26]} 31. Ba1 {[%clk 0:01:33]}  Rg3 {[%clk 0:00:48]} 32. Qf2 {[%clk 0:00:35]}  Rd3 {[%clk 0:00:34]} 33. Bxe4 {[%clk 0:00:26]}  dxe4 {[%clk 0:00:35]} 34. f5 {[%clk 0:00:26]}  gxf5 {[%clk 0:00:34]} 35. gxf5 {[%clk 0:00:24]}  Qd5 {[%clk 0:00:30]} 36. Ng6 {[%clk 0:00:20]}  Ng5 {[%clk 0:00:24]} 37. Qb2 {[%clk 0:00:15]}  Rd1+ {[%clk 0:00:17]} 38. Rxd1 {[%clk 0:00:12]}  Qxd1+ {[%clk 0:00:17]} 39. Kh2 {[%clk 0:00:12]}  Nf3+ {[%clk 0:00:15]} 40. Kg3 {[%clk 0:00:12]}  Qg1+ {[%clk 0:00:15]} 41. Kf4 {[%clk 0:00:12]}  Qg5+ {[%clk 0:00:14]} 42. Kxe4 {[%clk 0:00:13]}  Nd2+ {[%clk 0:00:14]} 43. Kd3 {[%clk 0:00:11]}  Qxf5+ {[%clk 0:00:14]} 44. Kxd2 {[%clk 0:00:12]}  Qxg6 {[%clk 0:00:15]} 45. Qh8+ {[%clk 0:00:12]}  Kf7 {[%clk 0:00:15]} 46. Qd4 {[%clk 0:00:11]}  Qg2+ {[%clk 0:00:15]} 47. Kc3 {[%clk 0:00:11]}  Qxh3+ {[%clk 0:00:15]} 48. Kb4 {[%clk 0:00:11]}  Qe6 {[%clk 0:00:16]} 49. Qf4+ {[%clk 0:00:11]}  Kg8 {[%clk 0:00:16]} 50. Qg3+ {[%clk 0:00:10]}  Kh7 {[%clk 0:00:16]} 51. Qd3+ {[%clk 0:00:10]}  Kg8 {[%clk 0:00:16]} 52. Qg3+ {[%clk 0:00:10]}  Kf7 {[%clk 0:00:16]} 53. Qf4+ {[%clk 0:00:11]}  Ke7 {[%clk 0:00:15]} 54. Qc7+ {[%clk 0:00:11]}  Ke8 {[%clk 0:00:14]} 55. Qb8+ {[%clk 0:00:11]}  Kf7 {[%clk 0:00:14]} 56. Qxb7+ {[%clk 0:00:12]}  Be7 {[%clk 0:00:15]} 57. Qf3+ {[%clk 0:00:12]}  Ke8 {[%clk 0:00:15]} 58. Qa8+ {[%clk 0:00:12]}  Kf7 {[%clk 0:00:15]} 59. Qxa7 {[%clk 0:00:12]}  h5 {[%clk 0:00:16]} 60. Qb8 {[%clk 0:00:09]}  Qe4+ {[%clk 0:00:15]} 61. Kb5 {[%clk 0:00:08]}  h4 {[%clk 0:00:15]} 62. Qe5 {[%clk 0:00:08]}  Qb7+ {[%clk 0:00:15]} 63. Kc4 {[%clk 0:00:08]}  Qa6+ {[%clk 0:00:15]} 64. Kd5 {[%clk 0:00:07]}  Qd3+ {[%clk 0:00:14]} 65. Bd4 {[%clk 0:00:06]}  h3 {[%clk 0:00:13]} 66. Qg7+ {[%clk 0:00:05]}  Ke8 {[%clk 0:00:13]} 67. Qg8+ {[%clk 0:00:05]}  Bf8 {[%clk 0:00:12]} 68. Qe6+ {[%clk 0:00:06]}  Kd8 {[%clk 0:00:13]} 69. Kc6 {[%clk 0:00:04]}  Qa6+ {[%clk 0:00:12]} 70. Kd5 {[%clk 0:00:04]}  Qd3 {[%clk 0:00:13]} 71. Qf6+ {[%clk 0:00:03]}  Be7 {[%clk 0:00:12]} 72. Qb6+ {[%clk 0:00:04]}  Ke8 {[%clk 0:00:13]} 73. Qc6+ {[%clk 0:00:04]}  Kf8 {[%clk 0:00:13]} 74. Qc8+ {[%clk 0:00:05]}  Kf7 {[%clk 0:00:13]} 75. Qe6+ {[%clk 0:00:05]}  Kf8 {[%clk 0:00:13]} 76. Qc8+ {[%clk 0:00:05]}  Kf7 {[%clk 0:00:14]} 77. Qe6+ {[%clk 0:00:06]}  Ke8 {[%clk 0:00:15]} 78. Qc8+ {[%clk 0:00:06]}  Kf7 {[%clk 0:00:15]} 1/2-1/2